fUST/lending_fUST_20250228
["ID","MTS","AMOUNT","RATE_DAILY","PERIOD"]
[354818253,1740714674812,-200.0,0.0044978,120]
[354818254,1740714674822,-239.81,0.0045,60]
[354818255,1740714674832,-298.0,0.0047091,120]
[354818256,1740714674842,-3314.2,0.00474213,120]
[354818257,1740714674852,-568.51,0.00474213,120]
[354818258,1740714674862,-500.0,0.00474214,120]
[354818259,1740714674875,-500.0,0.00474214,120]
[354818260,1740714674885,-572.33,0.00474214,120]
[354818261,1740714674895,-4311.24498587,0.0047464,79]
[354818262,1740714674904,-13037.20061914,0.0049,120]
[354818263,1740714674915,-21968.635604,0.00495339,120]
[354818264,1740714674924,-1000.0,0.00498,120]
[354818265,1740714674934,-2192.05,0.00498871,120]
[354818266,1740714674946,-1000.0,0.00498871,2]
[354818267,1740714674957,-850.23,0.00498871,120]
[354818268,1740714674968,-778.26,0.00498871,120]
[354818269,1740714674980,-999.81,0.00498871,120]
[354818270,1740714674989,-500.0,0.00498871,120]
[354818271,1740714674999,-1194.28,0.00498871,120]
[354818272,1740714675009,-3314.2,0.00498871,120]
[354818273,1740714675019,-568.51,0.00498871,120]
[354818274,1740714675030,-500.0,0.00498872,120]
[354818275,1740714675040,-500.0,0.00498872,120]
[354818276,1740714675049,-500.0,0.00498872,120]
[354818277,1740714675059,-814.72,0.00498872,120]
[354818278,1740714675069,-500.0,0.00498872,120]
[354818279,1740714675079,-937.14,0.00498872,120]
[354818280,1740714675088,-500.0,0.00498872,120]
[354818281,1740714675098,-500.0,0.00498872,120]
[354818282,1740714675107,-501.77,0.00498872,120]
[354818283,1740714675117,-958.6,0.00498872,120]
[354818284,1740714675127,-667.96,0.00498872,120]
[354818285,1740714675137,-500.0,0.00498872,120]
[354818286,1740714675147,-719.94,0.00498872,120]
[354818287,1740714675157,-500.0,0.00498872,120]
[354818288,1740714675168,-496.40653161,0.00498872,120]
[354818289,1740714675178,-713.99,0.00498872,120]
[354818290,1740714675188,-814.71,0.00498872,120]
[354818291,1740714675199,-952.78,0.00498872,120]
[354818292,1740714675208,-710.07,0.00498872,120]
[354818293,1740714675219,-500.0,0.00498872,120]
[354818294,1740714675232,-500.0,0.00498872,120]
[354818295,1740714675242,-1347.28,0.00498872,120]
[354818296,1740714675253,-475.54045234,0.00498872,120]
[354818297,1740714675263,-500.0,0.00498872,120]
[354818298,1740714675273,-615.26,0.00498872,120]
[354818299,1740714675284,-598.64,0.00498872,120]
[354818300,1740714675295,-559.23,0.00498872,120]
[354818301,1740714675306,-500.0,0.00498872,120]
[354818302,1740714675316,-557.08,0.00498872,120]
[354818303,1740714675326,-794.93,0.00498872,120]
[354818304,1740714675337,-500.0,0.00498872,120]
[354818305,1740714675347,-500.0,0.00498872,120]
[354818306,1740714675358,-500.0,0.00498872,120]
[354818307,1740714675368,-1280.1,0.00498872,120]
[354818308,1740714675379,-500.0,0.00498872,120]
[354818309,1740714675389,-500.0,0.00498872,120]
[354818310,1740714675401,-604.44,0.00498872,120]
[354818311,1740714675411,-820.88,0.00498872,120]
[354818312,1740714675422,-5534.98,0.00498872,120]
[354818313,1740714675434,-500.0,0.00498872,120]
[354818314,1740714675445,-658.92,0.00498872,120]
[354818315,1740714675456,-13649.77,0.00498872,7]
[354818316,1740714675466,-500.0,0.00498872,120]
[354818317,1740714675481,-500.0,0.00498872,120]
[354818318,1740714675493,-2298.66,0.00498872,120]
[354818319,1740714675503,-760.27,0.00498872,120]
[354818320,1740714675514,-500.0,0.00498872,120]
[354818321,1740714675525,-500.0,0.00498872,120]
[354818322,1740714675535,-500.0,0.00498872,120]
[354818323,1740714675545,-644.03,0.00498872,120]
[354818324,1740714675556,-907.46,0.00498872,120]
[354818325,1740714675566,-597.64,0.00498872,120]
[354818326,1740714675576,-2903.54,0.00498872,120]
[354818327,1740714675586,-500.0,0.00498872,120]
[354818328,1740714675596,-9266.4,0.00498872,120]
[354818329,1740714675606,-500.0,0.00498872,120]
[354818330,1740714675616,-500.0,0.00498872,120]
[354818331,1740714675627,-500.0,0.00498872,120]
[354818332,1740714675637,-4824.43,0.00498872,120]
[354818333,1740714675652,-1335.37,0.00498872,120]
[354818334,1740714675661,-718.0,0.00498872,120]
[354818335,1740714675671,-1082.86,0.00498872,120]
[354818336,1740714675681,-500.0,0.00498872,120]
[354818337,1740714675691,-991.55,0.00498872,120]
[354818338,1740714675700,-500.0,0.00498872,120]
[354818339,1740714675710,-500.0,0.00498872,30]
[354818340,1740714675721,-500.0,0.00498872,120]
[354818341,1740714675733,-500.0,0.00498872,120]
[354818342,1740714675742,-500.0,0.00498872,120]
[354818343,1740714675751,-559.31,0.00498872,120]
[354818344,1740714675760,-5756.36,0.00498872,120]
[354818345,1740714675770,-500.0,0.00498872,120]
[354818346,1740714675779,-500.0,0.00498872,120]
[354818347,1740714675788,-632.84,0.00498872,120]
[354818348,1740714675797,-2151.17,0.00498872,120]
[354818349,1740714675872,-500.0,0.00498872,120]
[354818350,1740714675882,-500.0,0.00498872,120]
[354818351,1740714675892,-706.58,0.00498872,120]
[354818352,1740714675902,-500.0,0.00498872,120]
[354818353,1740714675912,-3902.13,0.00498872,120]
[354818354,1740714675922,-500.0,0.00498872,120]
[354818355,1740714675931,-500.0,0.00498872,120]
[354818356,1740714675941,-875.93,0.00498872,120]
[354818357,1740714675952,-583.35,0.00498872,120]
[354818358,1740714675962,-500.0,0.00498872,120]
[354818359,1740714675971,-2508.91,0.00498872,120]
[354818360,1740714675983,-9170.72,0.00498872,120]
[354818361,1740714675993,-602.01,0.00498872,120]
[354818362,1740714676003,-500.0,0.00498872,120]
[354818363,1740714676012,-77991.08,0.00498872,7]
[354818364,1740714676022,-500.0,0.00498872,120]
[354818365,1740714676032,-625.01,0.00498872,120]
[354818366,1740714676041,-500.0,0.00498872,120]
[354818367,1740714676050,-527.99,0.00498872,120]
[354818368,1740714676060,-677.29,0.00498872,120]
[354818369,1740714676069,-1965.73,0.00498872,120]
[354818370,1740714676079,-1394.69,0.00498872,120]
[354818371,1740714676089,-500.0,0.00498872,120]
[354818372,1740714676098,-500.0,0.00498872,120]
[354818373,1740714676107,-500.0,0.00498872,120]
[354818374,1740714676117,-647.17,0.00498872,120]
[354818375,1740714676127,-2544.36,0.00498872,120]
[354818376,1740714676136,-622.43,0.00498872,120]
[354818377,1740714676145,-500.0,0.00498872,120]
[354818378,1740714676155,-500.0,0.00498872,120]
[354818379,1740714676165,-500.0,0.00498872,120]
[354818380,1740714676174,-1215.84,0.00498872,120]
[354818381,1740714676183,-500.0,0.00498872,120]
[354818382,1740714676193,-269.45297191,0.00498872,120]
[354818383,1740714676202,-982.74,0.00498872,120]
[354818384,1740714676212,-500.0,0.00498872,120]
[354818385,1740714676223,-500.0,0.00498872,120]
[354818386,1740714676235,-572.33,0.00498872,120]
[354818387,1740714676244,-500.0,0.00498973,120]
[354818388,1740714676254,-500.0,0.00498973,120]
[354818389,1740714676265,-500.0,0.00498973,120]
[354818390,1740714676275,-500.0,0.00498973,120]
[354818391,1740714676284,-500.0,0.00498973,120]
[354818392,1740714676294,-500.0,0.00498973,120]
[354818393,1740714676303,-500.0,0.00498973,120]
[354818394,1740714676312,-500.0,0.00498973,120]
[354818395,1740714676321,-500.0,0.00498973,120]
[354818396,1740714676331,-504.35486072,0.00498973,120]
[354818397,1740714676340,-500.0,0.00498973,120]
[354818398,1740714676350,-500.0,0.00498973,120]
[354818399,1740714676360,-646.51,0.00498973,120]
[354818400,1740714676369,-500.0,0.00498973,120]
[354818401,1740714676378,-555.77,0.00498973,120]
[354818402,1740714676387,-500.0,0.00498973,120]
[354818403,1740714676397,-693.81,0.00498973,120]
[354818404,1740714676406,-580.15,0.00498973,120]
[354818405,1740714676415,-500.0,0.00498973,120]
[354818406,1740714676425,-500.0,0.00498973,120]
[354818407,1740714676434,-500.0,0.00498973,120]
[354818408,1740714676444,-500.0,0.00498973,120]
[354818409,1740714676453,-500.0,0.00498973,120]
[354818410,1740714676463,-442.1887792,0.00498973,120]
[354818411,1740714676472,-527.86,0.00498973,120]
[354818412,1740714676483,-500.0,0.00498973,120]
[354818413,1740714676493,-500.0,0.00498973,120]
[354818414,1740714676503,-500.0,0.00498973,120]
[354818415,1740714676512,-500.0,0.00498973,120]
[354818416,1740714676521,-500.0,0.00498973,120]
[354818417,1740714676530,-453.4,0.00498973,120]
[354818418,1740714676539,-1497.1,0.00498973,120]
[354818419,1740714676549,-500.0,0.00498973,120]
[354818420,1740714676559,-1195.75,0.00498973,120]
[354818421,1740714676567,-1098.3,0.00498973,120]
[354818422,1740714676577,-500.0,0.00498973,120]
[354818423,1740714676586,-500.0,0.00498973,120]
[354818424,1740714676595,-537.87,0.00498973,120]
[354818425,1740714676605,-500.0,0.00498973,120]
[354818426,1740714676615,-500.0,0.00498973,120]
[354818427,1740714676624,-504.02,0.00498973,120]
[354818428,1740714676633,-796.92,0.00498973,120]
[354818429,1740714676643,-1364.8,0.00498973,120]
[354818430,1740714676652,-500.0,0.00498973,120]
[354818431,1740714676662,-500.0,0.00498973,120]
[354818432,1740714676671,-500.0,0.00498973,2]
[354818433,1740714676682,-500.0,0.00498973,120]
[354818434,1740714676692,-516.95575711,0.00498973,120]
[354818435,1740714676701,-500.0,0.00498973,120]
[354818436,1740714676711,-2066.9,0.00498973,15]
[354818437,1740714676719,-500.0,0.00498973,120]
[354818438,1740714676731,-500.0,0.00498973,120]
[354818439,1740714676740,-500.0,0.00498973,120]
[354818440,1740714676749,-553.82,0.00498973,120]
[354818441,1740714676758,-500.0,0.00498973,120]
[354818442,1740714676767,-574.15,0.00498973,120]
[354818443,1740714676778,-636.28,0.00498973,120]
[354818444,1740714676789,-500.0,0.00498973,120]
[354818445,1740714676799,-500.0,0.00498973,120]
[354818446,1740714676810,-500.0,0.00498973,120]
[354818447,1740714676821,-632.43,0.00498973,120]
[354818448,1740714676831,-500.0,0.00498973,120]
[354818449,1740714676841,-500.0,0.00498973,120]
[354818450,1740714676850,-949.38,0.00498973,120]
[354818451,1740714676862,-500.0,0.00498973,120]
[354818452,1740714676875,-500.0,0.00498973,120]
[354818453,1740714676884,-500.0,0.00498973,120]
[354818454,1740714676894,-450.0,0.005,120]
[354818455,1740714676903,-1765.0,0.005,120]
[354818456,1740714676914,-1715.342535,0.005,101]
[354818457,1740714676923,-160.0,0.00511387,5]
[354818458,1740714676933,-3314.2,0.00523528,120]
[354818459,1740714676943,-568.51,0.00523528,120]
[354818460,1740714676953,-500.0,0.00523529,120]
[354818461,1740714676964,-260.1,0.00523529,120]
[354818462,1740714676975,-572.33,0.00523529,120]
[354818463,1740714676984,-9976.0183649,0.00526812,120]
[354818464,1740714676994,-383.43277837,0.00534797,120]
[354818465,1740714677065,-2192.05,0.00548186,120]
[354818466,1740714677076,-1000.0,0.00548186,2]
[354818467,1740714677086,-850.23,0.00548186,120]
[354818468,1740714677096,-778.26,0.00548186,120]
[354818469,1740714677105,-999.81,0.00548186,120]
[354818470,1740714677114,-554.96037973,0.00548186,120]
[354818471,1740714677124,-1194.28,0.00548186,120]
[354818472,1740714677133,-3314.2,0.00548186,120]
[354818473,1740714677143,-568.51,0.00548186,120]
[354818474,1740714677153,-78016.95899585,0.00548187,91]
[354818475,1740714677163,-43988.07947565,0.00548187,63]
[354818476,1740714677173,-475.28424636,0.00548187,120]
[354818477,1740714677182,-500.0,0.00548187,120]
[354818478,1740714677192,-500.0,0.00548187,120]
[354818479,1740714677201,-814.72,0.00548187,120]
[354818480,1740714677211,-500.0,0.00548187,120]
[354818481,1740714677220,-937.14,0.00548187,120]
[354818482,1740714677231,-392.4501506,0.00548187,120]
[354818483,1740714677240,-500.0,0.00548187,120]
[354818484,1740714677250,-501.77,0.00548187,120]
[354818485,1740714677259,-958.6,0.00548187,120]
[354818486,1740714677269,-667.96,0.00548187,120]
[354818487,1740714677278,-500.0,0.00548187,120]
[354818488,1740714677287,-719.94,0.00548187,120]
[354818489,1740714677296,-500.0,0.00548187,120]
[354818490,1740714677306,-713.99,0.00548187,120]
[354818491,1740714677315,-814.71,0.00548187,120]
[354818492,1740714677324,-952.78,0.00548187,120]
[354818493,1740714677333,-710.07,0.00548187,120]
[354818494,1740714677343,-500.0,0.00548187,120]
[354818495,1740714677352,-500.0,0.00548187,120]
[354818496,1740714677360,-1347.28,0.00548187,120]
[354818497,1740714677369,-500.0,0.00548187,120]
[354818498,1740714677379,-615.26,0.00548187,120]
[354818499,1740714677388,-598.64,0.00548187,120]
[354818500,1740714677397,-559.23,0.00548187,120]
[354818501,1740714677406,-500.0,0.00548187,120]
[354818502,1740714677416,-557.08,0.00548187,120]
[354818503,1740714677425,-794.93,0.00548187,120]
[354818504,1740714677434,-500.0,0.00548187,120]
[354818505,1740714677443,-500.0,0.00548187,120]
[354818506,1740714677452,-500.0,0.00548187,120]
[354818507,1740714677462,-1280.1,0.00548187,120]
[354818508,1740714677472,-500.0,0.00548187,120]
[354818509,1740714677485,-500.0,0.00548187,120]
[354818510,1740714677495,-604.44,0.00548187,120]
[354818511,1740714677506,-820.88,0.00548187,120]
[354818512,1740714677516,-5534.98,0.00548187,120]
[354818513,1740714677526,-500.0,0.00548187,120]
[354818514,1740714677536,-658.92,0.00548187,120]
[354818515,1740714677546,-13649.77,0.00548187,7]
[354818516,1740714677555,-500.0,0.00548187,120]
[354818517,1740714677565,-2298.66,0.00548187,120]
[354818518,1740714677575,-760.27,0.00548187,120]
[354818519,1740714677585,-500.0,0.00548187,120]
[354818520,1740714677595,-500.0,0.00548187,120]
[354818521,1740714677604,-500.0,0.00548187,120]
[354818522,1740714677614,-907.46,0.00548187,120]
[354818523,1740714677624,-597.64,0.00548187,120]
[354818524,1740714677634,-2903.54,0.00548187,120]
[354818525,1740714677644,-500.0,0.00548187,120]
[354818526,1740714677654,-9266.4,0.00548187,120]
[354818527,1740714677663,-500.0,0.00548187,120]
[354818528,1740714677673,-628.96573364,0.00548187,120]
[354818529,1740714677683,-500.0,0.00548187,120]
[354818530,1740714677692,-4824.43,0.00548187,120]
[354818531,1740714677702,-1335.37,0.00548187,120]
[354818532,1740714677711,-718.0,0.00548187,120]
[354818533,1740714677721,-1082.86,0.00548187,120]
[354818534,1740714677734,-500.0,0.00548187,120]
[354818535,1740714677744,-991.55,0.00548187,120]
[354818536,1740714677753,-500.0,0.00548187,120]
[354818537,1740714677763,-500.0,0.00548187,30]
[354818538,1740714677772,-500.0,0.00548187,120]
[354818539,1740714677782,-500.0,0.00548187,120]
[354818540,1740714677792,-500.0,0.00548187,120]
[354818541,1740714677802,-559.31,0.00548187,120]
[354818542,1740714677811,-5756.36,0.00548187,120]
[354818543,1740714677820,-500.0,0.00548187,120]
[354818544,1740714677830,-500.0,0.00548187,120]
[354818545,1740714677840,-2151.17,0.00548187,120]
[354818546,1740714677850,-500.0,0.00548187,120]
[354818547,1740714677861,-500.0,0.00548187,120]
[354818548,1740714677874,-706.58,0.00548187,120]
[354818549,1740714677884,-500.0,0.00548187,120]
[354818550,1740714677894,-3902.13,0.00548187,120]
[354818551,1740714677906,-500.0,0.00548187,120]
[354818552,1740714677916,-500.0,0.00548187,120]
[354818553,1740714677925,-875.93,0.00548187,120]
[354818554,1740714677935,-583.35,0.00548187,120]
[354818555,1740714677946,-500.0,0.00548187,120]
[354818556,1740714677956,-2508.91,0.00548187,120]
[354818557,1740714677966,-9170.72,0.00548187,120]
[354818558,1740714677977,-602.01,0.00548187,120]
[354818559,1740714677987,-500.0,0.00548187,120]
[354818560,1740714677997,-77991.08,0.00548187,7]
[354818561,1740714678007,-500.0,0.00548187,120]
[354818562,1740714678017,-625.01,0.00548187,120]
[354818563,1740714678026,-500.0,0.00548187,120]
[354818564,1740714678036,-527.99,0.00548187,120]
[354818565,1740714678045,-677.29,0.00548187,120]
[354818566,1740714678054,-1965.73,0.00548187,120]
[354818567,1740714678064,-1394.69,0.00548187,120]
[354818568,1740714678074,-500.0,0.00548187,120]
[354818569,1740714678084,-500.0,0.00548187,120]
[354818570,1740714678093,-500.0,0.00548187,120]
[354818571,1740714678103,-647.17,0.00548187,120]
[354818572,1740714678173,-2544.36,0.00548187,120]
[354818573,1740714678182,-622.43,0.00548187,120]
[354818574,1740714678192,-500.0,0.00548187,120]
[354818575,1740714678201,-500.0,0.00548187,120]
[354818576,1740714678210,-500.0,0.00548187,120]
[354818577,1740714678219,-1215.84,0.00548187,120]
[354818578,1740714678230,-500.0,0.00548187,120]
[354818579,1740714678240,-982.74,0.00548187,120]
[354818580,1740714678250,-619.63,0.00548187,120]
[354818581,1740714678259,-572.33,0.00548187,120]
[354818582,1740714678269,-500.0,0.00548288,120]
[354818583,1740714678278,-500.0,0.00548288,120]
[354818584,1740714678288,-500.0,0.00548288,120]
[354818585,1740714678298,-500.0,0.00548288,120]
[354818586,1740714678307,-285.18575566,0.00548288,120]
[354818587,1740714678317,-500.0,0.00548288,120]
[354818588,1740714678327,-500.0,0.00548288,120]
[354818589,1740714678336,-500.0,0.00548288,120]
[354818590,1740714678346,-500.0,0.00548288,120]
[354818591,1740714678356,-500.0,0.00548288,120]
[354818592,1740714678365,-500.0,0.00548288,120]
[354818593,1740714678375,-500.0,0.00548288,120]
[354818594,1740714678385,-555.77,0.00548288,120]
[354818595,1740714678395,-500.0,0.00548288,120]
[354818596,1740714678404,-693.81,0.00548288,120]
[354818597,1740714678414,-580.15,0.00548288,120]
[354818598,1740714678423,-500.0,0.00548288,120]
[354818599,1740714678432,-500.0,0.00548288,120]
[354818600,1740714678441,-500.0,0.00548288,120]
[354818601,1740714678451,-500.0,0.00548288,120]
[354818602,1740714678461,-500.0,0.00548288,120]
[354818603,1740714678470,-527.86,0.00548288,120]
[354818604,1740714678480,-500.0,0.00548288,120]
[354818605,1740714678489,-500.0,0.00548288,120]
[354818606,1740714678498,-500.0,0.00548288,120]
[354818607,1740714678508,-500.0,0.00548288,120]
[354818608,1740714678517,-500.0,0.00548288,120]
[354818609,1740714678527,-1497.1,0.00548288,120]
[354818610,1740714678536,-500.0,0.00548288,120]
[354818611,1740714678545,-1195.75,0.00548288,120]
[354818612,1740714678554,-1098.3,0.00548288,120]
[354818613,1740714678563,-500.0,0.00548288,120]
[354818614,1740714678573,-500.0,0.00548288,120]
[354818615,1740714678582,-537.87,0.00548288,120]
[354818616,1740714678592,-500.0,0.00548288,120]
[354818617,1740714678602,-500.0,0.00548288,120]
[354818618,1740714678612,-796.92,0.00548288,120]
[354818619,1740714678621,-1364.8,0.00548288,120]
[354818620,1740714678631,-500.0,0.00548288,120]
[354818621,1740714678640,-500.0,0.00548288,120]
[354818622,1740714678661,-500.0,0.00548288,2]
[354818623,1740714678678,-500.0,0.00548288,120]
[354818624,1740714678696,-612.8,0.00548288,120]
[354818625,1740714678716,-2066.9,0.00548288,15]
[354818626,1740714678734,-500.0,0.00548288,120]
[354818627,1740714678750,-500.0,0.00548288,120]
[354818628,1740714678768,-500.0,0.00548288,120]
[354818629,1740714678783,-553.82,0.00548288,120]
[354818630,1740714678800,-500.0,0.00548288,120]
[354818631,1740714678819,-574.15,0.00548288,120]
[354818632,1740714678839,-636.28,0.00548288,120]
[354818633,1740714678851,-500.0,0.00548288,120]
[354818634,1740714678871,-500.0,0.00548288,120]
[354818635,1740714678889,-500.0,0.00548288,120]
[354818636,1740714678906,-632.43,0.00548288,120]
[354818637,1740714678920,-500.0,0.00548288,120]
[354818638,1740714678935,-500.0,0.00548288,120]
[354818639,1740714678951,-949.38,0.00548288,120]
[354818640,1740714678966,-500.0,0.00548288,120]
[354818641,1740714678982,-500.0,0.00548288,120]
[354818642,1740714678996,-9976.0183649,0.00568123,120]
[354818643,1740714679011,-279.0538995,0.00569163,120]
[354818644,1740714679026,-10078.116,0.00569725,120]
[354818645,1740714679040,-10078.117,0.00569725,120]
[354818646,1740714679054,-10078.116,0.00569725,120]
[354818647,1740714679069,-10078.117,0.00569725,120]
[354818648,1740714679083,-10012.7885149,0.00569725,120]
[354818649,1740714679484,-500.0,0.00055036,120]
[354818650,1740714679494,-65.3274851,0.00569725,120]
[354818651,1740714679503,-2808.38224013,0.00572681,120]
[354818652,1740714679515,-257.08,0.00572681,120]
[354818653,1740714679658,-5381.96029586,0.00572681,120]
[354818654,1740714679669,-1528.59582891,0.00572681,120]
[354818655,1740714679679,-3213.18899303,0.00572843,120]
[354818656,1740714727884,363.0,0.00045,120]
[354818657,1740714734357,301.51868443,0.00052999,30]
[354818658,1740714737339,270.0,0.00045,120]
[354818668,1740715154504,307.0,0.00025,120]
[354818669,1740715197117,3000.0,0.00025,120]
[354818670,1740715266965,-3935.2281367,0.00049359,2]
[354818671,1740715266993,-198.48131557,0.00052999,30]
[354818672,1740715267017,-367.0,0.00053546,15]
[354818673,1740715267043,-500.0,0.00053547,35]
[354818674,1740715267069,-500.0,0.00054095,40]
[354818675,1740715267099,-259.91,0.00054643,45]
[354818676,1740715267124,-500.0,0.00054794,120]
[354818677,1740715267153,-1181.51575154,0.00054835,28]
[354818678,1740715267177,-166.52968198,0.000549,2]
[354818679,1740715267203,-345.08950062,0.000549,13]
[354818680,1740715267229,-1241.64,0.00054926,10]
[354818681,1740715267253,-1034.7,0.00054926,10]
[354818682,1740715267279,-324.36119796,0.00054935,120]
[354818683,1740715267305,-362.16169028,0.00054935,2]
[354818684,1740715267331,-500.0,0.00054935,120]
[354818685,1740715267355,-500.0,0.00054935,120]
[354818686,1740715267380,-500.0,0.00054935,120]
[354818687,1740715267408,-500.0,0.00054935,120]
[354818688,1740715267433,-918.96,0.00054935,120]
[354818689,1740715267457,-500.0,0.00054935,120]
[354818690,1740715267482,-500.0,0.00054935,120]
[354818691,1740715267506,-500.0,0.00054935,120]
[354818692,1740715267530,-500.0,0.00054935,120]
[354818693,1740715267555,-500.0,0.00054935,120]
[354818694,1740715267579,-500.0,0.00054935,120]
[354818695,1740715267603,-500.0,0.00054935,21]
[354818696,1740715267629,-952.66,0.00054935,120]
[354818697,1740715267655,-1702.97,0.00054935,120]
[354818698,1740715267680,-500.0,0.00054935,120]
[354818699,1740715267705,-1034.02,0.00054935,120]
[354818700,1740715267731,-5101.69,0.00054935,120]
[354818701,1740715267758,-3289.61,0.00054935,120]
[354818702,1740715267783,-586.55,0.00054935,120]
[354818703,1740715267810,-500.0,0.00054935,120]
[354818704,1740715267979,-999.0,0.00054935,120]
[354818705,1740715268007,-500.0,0.00054935,120]
[354818706,1740715268034,-1389.83,0.00054935,120]
[354818707,1740715268066,-1629.91,0.00054935,120]
[354818708,1740715268093,-500.0,0.00054935,120]
[354818709,1740715268118,-500.0,0.00054935,120]
[354818710,1740715268147,-500.0,0.00054935,120]
[354818711,1740715268173,-500.0,0.00054935,120]
[354818712,1740715268199,-2742.12,0.00054935,120]
[354818713,1740715268226,-500.0,0.00054935,120]
[354818714,1740715268251,-500.0,0.00054935,120]
[354818715,1740715268276,-537.09,0.00054935,120]
[354818716,1740715268300,-500.0,0.00054935,30]
[354818717,1740715268325,-500.0,0.00054935,120]
[354818718,1740715268350,-500.0,0.00054935,120]
[354818719,1740715268374,-2103.9,0.00054935,120]
[354818720,1740715268399,-500.0,0.00054935,120]
[354818721,1740715268423,-500.0,0.00054935,120]
[354818722,1740715268448,-500.0,0.00054935,120]
[354818723,1740715268476,-500.0,0.00054935,120]
[354818724,1740715268502,-2595.07272535,0.00054935,120]
[354818726,1740715420470,-150.0,0.00047151,2]
[354818727,1740715558113,-85.566011,0.00047151,2]
[354818728,1740715558138,-866.34792784,0.00054835,120]
[354818729,1740715558159,-718.46806116,0.00054836,120]
[354818730,1740715571417,-150.0,0.00045,120]
[354818731,1740715633075,-1.0,0.00045,120]
[354818732,1740715633096,-152.58021793,0.00054835,2]
[354818733,1740715633117,-312.78652718,0.00054836,120]
[354818734,1740715638129,-1488.151033,0.00054835,28]
[354818735,1740715638153,-3000.0,0.00054836,120]
[354818736,1740715638181,-333.58651744,0.000549,13]
[354818737,1740715638204,-869.07,0.00054925,10]
[354818738,1740715638225,-1356.91,0.00054925,10]
[354818739,1740715638247,-1130.76,0.00054925,10]
[354818740,1740715638274,-500.0,0.00054934,120]
[354818741,1740715638297,-500.0,0.00054934,120]
[354818742,1740715638328,-500.0,0.00054935,2]
[354818743,1740715638351,-500.0,0.00054935,120]
[354818744,1740715638371,-204.50889845,0.00054935,120]
[354818745,1740715638393,-300.0,0.00054935,120]
[354818746,1740715638415,-500.0,0.00054935,120]
[354818747,1740715638597,-500.0,0.00054935,2]
[354818748,1740715638621,-500.0,0.00054935,120]
[354818749,1740715638644,-500.0,0.00054935,120]
[354818750,1740715638668,-500.0,0.00054935,120]
[354818751,1740715638691,-381.43131272,0.00054935,120]
[354818755,1740715749511,-153.0,0.000503,120]
[354818757,1740715754106,-153.0,0.000536,120]
[354818759,1740715806574,492.0,0.00049,120]
[354818760,1740715808846,492.0,0.00051,120]
[354818761,1740715811125,492.0,0.00053,120]
[354818762,1740715811226,-672.65205028,0.00054834,120]
[354818763,1740715811257,-1968.74541166,0.00054835,120]
[354818764,1740715811287,-503.79640328,0.00054934,120]
[354818765,1740715811318,-500.0,0.00054934,120]
[354818766,1740715811357,-500.0,0.00054934,120]
[354818767,1740715811392,-500.0,0.00054934,120]